bitfinex-derivatives/quotes_ETHF0:USTF0_20250329
["timestamp","ask_amount","ask_price","bid_price","bid_amount"]
[1743247305197,3.9133,1867.6,1867.5,6.83983638]
[1743247305403,1.2753,1867.6,1867.5,6.83983638]
[1743247305700,1.2753,1867.6,1867.5,6.83995162]
[1743247306898,2.7433,1867.6,1867.5,6.83995162]
[1743247307502,3.8147,1867.6,1867.5,6.83995162]
[1743247307697,3.8147,1867.6,1867.5,4.36689543]
[1743247307898,2.7433,1867.6,1867.5,1.58135543]
[1743247308097,2.7433,1867.6,1867.5,6.89965543]
[1743247308404,2.7433,1867.6,1867.5,6.38976]
[1743247309205,2.7433,1867.6,1867.5,6.89971774]
[1743247309703,2.7433,1867.6,1867.5,6.89974681]
[1743247310105,2.7433,1867.6,1867.5,6.89074681]
[1743247311701,2.7433,1867.6,1867.5,6.89076196]
[1743247312303,1.2292,1868.0,1867.5,6.6352877]
[1743247312504,3.2078,1868.1,1867.5,6.6352877]
[1743247312505,1.2642,1868.1,1868.0,1.07117]
[1743247312807,2.33532,1868.1,1868.0,4.34000196]
[1743247313007,1.2642,1868.1,1868.0,5.41117196]
[1743247313212,1.2642,1868.1,1868.0,4.90117]
[1743247313513,2.7088,1868.1,1868.0,3.83]
[1743247313705,2.7088,1868.1,1868.0,5.41112501]
[1743247314906,2.7088,1868.1,1868.0,4.90117]
[1743247315611,2.7088,1868.1,1868.0,5.41122858]
[1743247316812,1.2642,1868.1,1868.0,5.41122858]
[1743247317411,1.2642,1868.1,1868.0,5.41122411]
[1743247317809,2.33532,1868.1,1868.0,3.83]
[1743247318002,1.0712,1868.0,1867.8,1.4167]
[1743247318202,5.54316,1868.1,1867.9,4.89023]
[1743247318406,5.54316,1868.1,1868.0,1.338]
[1743247318610,1.07117,1868.0,1867.9,3.819]
[1743247319013,1.07117,1868.0,1867.9,4.89023]
[1743247319212,1.07117,1868.0,1867.9,6.22823]
[1743247319411,1.07117,1868.0,1867.9,5.157]
[1743247319611,1.07117,1868.0,1867.9,6.22823]
[1743247319811,1.07117,1868.0,1867.9,5.157]
[1743247320012,1.07117,1868.0,1867.9,6.22823]
[1743247320419,5.54315,1868.1,1868.0,1.07117]
[1743247320608,5.54315,1868.1,1868.0,2.42957]
[1743247320811,4.472,1868.1,1868.0,2.42957]
[1743247321018,4.472,1868.1,1868.0,2.93971305]
[1743247321217,4.472,1868.1,1868.0,2.93971088]
[1743247322618,1.2642,1868.1,1868.0,2.93971088]
[1743247323513,1.0712,1868.0,1867.8,1.88737852]
[1743247323714,1.0712,1868.0,1867.9,4.30711238]
[1743247323918,1.0712,1868.0,1867.9,3.797]
[1743247324217,1.07121,1868.0,1867.8,6.33015]
[1743247325011,5.7679,1868.1,1867.8,6.33015]
[1743247325206,1.07121,1868.0,1867.8,6.33015]
[1743247325412,1.07121,1868.0,1867.9,1.4629]
[1743247325818,5.7679,1868.1,1867.8,3.796]
[1743247326014,1.07123,1867.9,1867.8,3.796]
[1743247326314,3.2078,1867.9,1867.4,0.00802332]
[1743247326521,1.07146,1867.5,1867.4,0.00802332]
[1743247326817,4.27926,1867.5,1867.4,3.80002332]
[1743247327320,4.27926,1867.5,1867.4,0.00802332]
[1743247327524,1.07157,1867.3,1867.2,3.791]
[1743247328213,1.07157,1867.3,1867.2,5.1501]
[1743247328420,4.27937,1867.3,1867.2,1.3591]
[1743247328617,1.07163,1867.2,1867.1,3.79602332]
[1743247328833,1.07163,1867.2,1867.1,0.00802332]
[1743247329017,5.17916,1867.2,1866.6,4.86197]
[1743247329213,3.2078,1866.7,1866.6,3.79]
[1743247329418,4.27972,1866.7,1866.6,3.79]
[1743247329615,4.27976,1866.7,1866.5,5.2093]
[1743247329817,4.27976,1866.7,1866.6,1.07198]
[1743247329818,3.2078,1866.7,1866.6,1.07198]
[1743247330117,3.2078,1866.7,1866.6,1.58164401]
[1743247330316,3.2078,1866.7,1866.6,1.07198]
[1743247330615,0.00802332,1866.8,1866.7,1.07192]
[1743247331117,3.2078,1867.2,1867.0,1.0717]
[1743247331118,1.07163,1867.2,1867.0,1.0717]
[1743247331321,3.2078,1867.3,1867.1,5.2153]
[1743247331522,4.27942,1867.3,1867.2,1.4193]
[1743247332027,1.07163,1867.2,1867.1,3.796]
[1743247332226,1.07171,1867.1,1867.0,0.00802332]
[1743247332519,2.4311,1867.2,1867.0,3.80302332]
[1743247332724,3.50277,1867.2,1867.0,4.87476332]
[1743247332928,3.50277,1867.2,1867.1,1.3546]
[1743247333321,1.07169,1867.1,1867.0,3.80302332]
[1743247333527,4.27949,1867.1,1867.0,3.80302332]
[1743247333922,1.07169,1867.1,1867.0,3.80302332]
[1743247334221,1.07169,1867.1,1867.0,5.15762332]
[1743247334425,4.27949,1867.1,1867.0,3.80302332]
[1743247335426,2.4311,1867.2,1867.0,0.00802332]
[1743247335623,2.4311,1867.2,1867.1,1.07169]
[1743247335831,3.2078,1867.3,1867.2,1.07163]
[1743247336430,3.2078,1867.3,1867.2,2.44643]
[1743247336626,0.00802332,1867.4,1867.3,1.07157]
[1743247336830,0.00802332,1867.4,1867.3,4.78781055]
[1743247337132,0.00802332,1867.4,1867.3,7.28775051]
[1743247337525,18.64991333,1867.6,1867.5,1.07146]
[1743247337719,18.64991333,1867.6,1867.5,4.86146]
[1743247338125,18.64991333,1867.6,1867.5,8.57764051]
[1743247338327,18.64991333,1867.6,1867.5,9.70014051]
[1743247338828,3.2078,1867.9,1867.8,1.07129]
[1743247339027,3.2078,1867.9,1867.8,4.85629]
[1743247340624,4.6367,1867.9,1867.8,3.785]
[1743247340933,4.6367,1867.9,1867.8,4.85629]
[1743247341323,1.07131,1867.8,1867.6,1.3974]
[1743247341527,1.426,1867.7,1867.6,2.4688]
[1743247341728,1.426,1867.7,1867.6,6.2448]
[1743247342732,3.2078,1867.9,1867.8,1.07129]
[1743247343033,4.6338,1867.9,1867.7,1.07131]
[1743247343229,5.70503,1867.9,1867.8,1.3671]
[1743247343935,4.6338,1867.9,1867.8,1.3671]
[1743247344735,4.6338,1867.9,1867.8,2.43839]
[1743247344934,4.6338,1867.9,1867.8,1.3671]
[1743247345136,5.70503,1867.9,1867.8,1.3671]
[1743247345337,4.6338,1867.9,1867.8,2.43839]
[1743247345631,0.00802332,1868.0,1867.9,1.07123]
[1743247345832,0.00802332,1868.0,1867.9,6.27723]
[1743247346432,0.00802332,1868.0,1867.9,11.98503]
[1743247346636,35.22870111,1868.2,1868.1,1.07112]
[1743247346937,35.22870111,1868.2,1868.1,4.78717616]
[1743247347128,35.22870111,1868.2,1868.1,14.94839798]
[1743247347334,35.22870111,1868.2,1868.1,14.13518813]
[1743247347731,32.69532111,1868.2,1868.1,14.94839798]
[1743247347936,0.00802332,1868.3,1868.2,1.07106]
[1743247348136,16.57878778,1868.7,1868.6,1.07083]
[1743247348337,16.57878778,1868.7,1868.6,4.84283]
[1743247349842,16.57878778,1868.7,1868.6,8.05063]
[1743247350030,16.57878778,1868.7,1868.6,10.55063]
[1743247350229,0.00802332,1868.8,1868.7,1.07077]
[1743247350437,0.00802332,1868.8,1868.7,2.47497]
[1743247350637,0.00802332,1868.8,1868.7,11.91090661]
[1743247351242,0.00802332,1868.8,1868.7,13.02490661]
[1743247351444,3.32e-06,1868.8,1868.7,13.02490661]
[1743247351841,3.32e-06,1868.8,1868.7,19.02290661]
[1743247353845,3.32e-06,1868.8,1868.7,16.52290661]
[1743247354143,3.32e-06,1868.8,1868.7,20.27890661]
[1743247354340,3.32e-06,1868.8,1868.7,19.16490661]
[1743247355950,3.32e-06,1868.8,1868.7,15.94410661]
[1743247356244,3.32e-06,1868.8,1868.7,6.22497]
[1743247357441,1.33320332,1868.8,1868.7,6.22497]
[1743247357643,1.33320332,1868.8,1868.7,1.4042]
[1743247357844,1.33320332,1868.8,1868.7,3.746]
[1743247358143,1.33320332,1868.8,1868.7,4.81677]
[1743247358447,2.40391332,1868.8,1868.7,3.746]
[1743247358648,1.33320332,1868.8,1868.7,4.81577]
[1743247359740,2.40391332,1868.8,1868.7,3.745]
[1743247360142,1.07079,1868.7,1868.5,1.07084]
[1743247360348,1.3312,1868.6,1868.3,1.3747]
[1743247360549,3.2078,1868.4,1868.0,7.07716332]
[1743247360743,2.5178,1868.3,1868.0,1.07916332]
[1743247360941,1.07106,1868.2,1868.0,1.07916332]
[1743247361142,1.3312,1868.1,1868.0,0.00802332]
[1743247361342,2.40232,1868.1,1868.0,0.00802332]
[1743247362842,1.07123,1867.9,1867.7,2.44603]
[1743247363149,1.07134,1867.7,1867.6,3.2078]
[1743247363651,3.77382,1867.8,1867.6,3.2078]
[1743247363847,1.4195,1867.7,1867.6,3.2078]
[1743247364153,2.49084,1867.7,1867.6,3.2078]
[1743247364443,2.49084,1867.7,1867.5,3.74302332]
[1743247364852,1.0714,1867.6,1867.5,0.00802332]
[1743247365047,5.6987,1867.6,1867.5,0.00802332]
[1743247365849,1.07146,1867.5,1867.4,3.732]
[1743247366045,1.07152,1867.4,1867.3,3.73]
[1743247366350,4.27932,1867.4,1867.3,3.73]
[1743247367447,3.2078,1867.4,1866.9,3.2078]
[1743247367651,4.2795,1867.1,1867.0,3.725]
[1743247367851,3.2078,1867.1,1867.0,3.725]
[1743247368052,4.27949,1867.1,1867.0,3.725]
[1743247368249,4.5437,1867.1,1867.0,3.725]
[1743247368751,5.61539,1867.1,1867.0,3.725]
[1743247369458,4.5437,1867.1,1867.0,3.725]
[1743247369649,5.61539,1867.1,1867.0,3.725]
[1743247369852,4.5437,1867.1,1866.9,0.00802332]
[1743247370149,5.61542,1867.1,1866.9,0.00802332]
[1743247371050,5.61541,1867.1,1866.9,0.00802332]
[1743247371254,4.5437,1867.1,1866.9,2.51389332]
[1743247371456,4.5437,1867.1,1867.0,1.07175]
[1743247371655,5.6154,1867.1,1866.9,1.44212332]
[1743247371852,1.07175,1867.0,1866.9,0.00802332]
[1743247372052,2.44855,1867.0,1866.9,0.00802332]
[1743247372376,1.3768,1867.0,1866.9,0.00802332]
[1743247372550,2.44855,1867.0,1866.9,0.00802332]
[1743247372752,1.3768,1867.0,1866.9,1.07982332]
[1743247373151,1.3768,1867.0,1866.9,0.00802332]
[1743247373758,1.3768,1867.0,1866.9,1.07982332]
[1743247374059,2.44855,1867.0,1866.9,1.38302332]
[1743247374562,1.3768,1867.0,1866.9,1.38302332]
[1743247374756,1.3016,1867.2,1867.0,1.07175]
[1743247374955,3.2078,1867.1,1867.0,1.07175]
[1743247375261,4.5508,1867.1,1866.9,1.38302332]
[1743247375562,5.62252,1867.1,1866.9,0.00802332]
[1743247375762,4.5508,1867.1,1867.0,1.07175]
[1743247375964,2.41469,1867.1,1866.9,2.41118332]
[1743247376360,1.07175,1867.0,1866.9,1.33942332]
[1743247376558,2.41475,1867.0,1866.9,0.00802332]
[1743247378264,1.07194,1866.7,1866.5,1.07199]
[1743247378463,2.5183,1866.6,1866.4,2.41685]
[1743247378673,3.8193,1866.6,1866.5,3.709]
[1743247378968,2.7473,1866.6,1866.5,4.78103]
[1743247379168,2.7473,1866.6,1866.5,6.12583]
[1743247379770,3.81932,1866.6,1866.5,3.706]
[1743247380262,2.7473,1866.6,1866.4,0.00802332]
[1743247380564,2.7473,1866.6,1865.9,1.07236]
[1743247380565,1.07231,1866.1,1865.9,1.07236]
[1743247380771,1.07231,1866.1,1866.0,1.4268]
[1743247381264,1.07231,1866.1,1865.6,1.228]
[1743247381265,3.2078,1866.2,1865.6,1.228]
[1743247381467,4.418,1866.1,1866.0,1.07232]
[1743247381664,1.2102,1866.1,1866.0,4.77432]
[1743247382066,4.4841,1866.3,1866.1,1.07223]
[1743247382262,5.55627,1866.3,1866.2,1.4268]
[1743247382673,4.4841,1866.3,1866.2,1.4268]
[1743247382967,5.55625,1866.3,1866.2,1.4268]
[1743247383369,4.4841,1866.3,1866.2,2.49901]
[1743247383570,5.55625,1866.3,1866.2,1.4268]
[1743247384763,4.27985,1866.5,1866.3,1.07212]
[1743247384969,4.27985,1866.5,1866.4,1.354]
[1743247385471,1.07209,1866.4,1866.3,3.693]
[1743247385666,1.07215,1866.3,1866.2,5.049]
[1743247385973,1.07213,1866.4,1866.2,6.12121]
[1743247386271,1.07215,1866.3,1866.2,5.049]
[1743247386464,1.07213,1866.4,1866.2,6.12121]
[1743247386664,3.2078,1866.3,1866.2,6.12121]
[1743247386861,3.2078,1866.3,1866.2,5.049]
[1743247387071,4.27995,1866.3,1866.2,2.42621]
[1743247387270,3.2078,1866.3,1866.2,2.42621]
[1743247388274,1.07203,1866.5,1866.3,1.0721]
[1743247388476,3.2078,1866.5,1866.1,1.3084]
[1743247388668,1.07221,1866.2,1866.1,6.3416]
[1743247389069,1.07228,1866.1,1866.0,1.07232]
[1743247389269,1.07228,1866.1,1866.0,1.3432]
[1743247389467,1.07241,1865.9,1865.7,2.39078]
[1743247389770,1.07241,1865.9,1865.8,5.1146]
[1743247390168,1.07241,1865.9,1865.8,3.713]
[1743247390470,3.2078,1865.9,1865.3,4.5128]
[1743247390676,1.07257,1865.6,1865.4,2.47424]
[1743247391672,1.07261,1865.5,1865.4,1.4016]
[1743247391875,1.07259,1865.6,1865.4,1.4016]
[1743247392074,1.07261,1865.5,1865.4,1.4016]
[1743247392871,4.28041,1865.5,1865.4,1.4016]
[1743247393571,1.07267,1865.4,1865.3,3.705]
[1743247393777,1.07267,1865.4,1865.3,5.0836]
[1743247393970,1.07267,1865.4,1865.3,1.3816]
[1743247394678,1.07277,1865.3,1865.1,4.8985]
[1743247394868,1.07279,1865.2,1865.0,2.83223861]
[1743247395071,1.07275,1865.3,1865.1,5.0806]
[1743247395271,1.07272,1865.3,1865.1,6.15341]
[1743247395468,1.07272,1865.3,1865.2,1.3816]
[1743247395777,3.65069,1865.4,1865.2,2.45438]
[1743247395980,1.07272,1865.3,1865.2,1.3816]
[1743247396477,2.49742,1865.3,1865.2,1.3816]
[1743247396676,1.4247,1865.3,1865.2,1.3816]
[1743247396877,2.49742,1865.3,1865.2,1.3816]
[1743247397489,1.4247,1865.3,1865.0,1.75909814]
[1743247397692,1.07283,1865.2,1864.9,4.28072]
[1743247397889,3.2078,1865.0,1864.2,2.78963886]
[1743247398092,3.2078,1865.0,1864.1,3.2078]
[1743247398093,3.2078,1864.3,1863.9,1.31997974]
[1743247398393,2.49808,1864.2,1863.9,2.5432]
[1743247398596,1.4247,1864.2,1863.9,1.4697]
[1743247398887,1.07347,1864.0,1863.9,1.4697]
[1743247399089,1.07359,1863.8,1863.6,4.21494824]
[1743247399287,2.6908,1864.2,1863.6,5.0431]
[1743247399288,4.4739,1864.2,1863.6,5.0431]
[1743247399494,2.715,1864.2,1863.8,1.07353]
[1743247399791,3.2078,1863.9,1863.2,1.58098338]
[1743247399995,3.2078,1863.3,1862.8,15.56342387]
[1743247400295,1.07439,1862.4,1862.0,42.3404481]
[1743247400489,3.2078,1862.2,1859.6,71.95470415]
[1743247400818,7.02401477,1860.3,1857.8,285.81485584]
[1743247400984,8.831,1859.1,1852.3,6.62724274]
[1743247401180,8.831,1859.1,1844.2,5.3141711]
[1743247401181,3.2078,1853.3,1849.8,1.93001302]
[1743247401385,4.50882615,1849.2,1848.8,259.86027029]
[1743247401588,0.54080001,1851.5,1849.1,2.1295]
[1743247401789,3.2078,1850.4,1849.2,55.554]
[1743247401989,3.2078,1850.0,1849.3,5.998]
[1743247402292,4.50882615,1851.9,1849.4,49.556]
[1743247402602,0.99387809,1851.8,1850.4,3.2078]
[1743247402791,3.2078,1851.6,1850.7,3.2078]
[1743247402988,1.68373921,1851.5,1850.8,49.695]
[1743247403185,5.936,1851.4,1850.9,49.695]
[1743247403490,0.11612302,1851.3,1851.0,49.695]
[1743247403684,0.11612302,1851.3,1850.8,6.93785824]
[1743247403685,9.83340868,1851.1,1849.5,98.84915504]
[1743247403889,4.89681119,1851.3,1848.8,21.99711297]
[1743247403890,1.08224,1848.9,1848.8,21.99711297]
[1743247404093,0.61062309,1851.8,1848.8,18.73269297]
[1743247404290,3.2078,1851.0,1848.9,689.1718]
[1743247404593,243.90539379,1856.4,1848.9,689.1718]
[1743247404594,0.60354309,1854.3,1851.8,10.8105]
[1743247404791,0.60358769,1854.5,1852.2,6.5818424]
[1743247404994,3.2078,1852.9,1851.9,3.2078]
[1743247405188,0.00810678,1853.5,1851.9,1.83357]
[1743247405390,6.93277529,1852.8,1851.9,3.7118124]
[1743247405590,5.3959,1854.2,1852.2,3.21590678]
[1743247405790,6.59040857,1855.8,1852.8,3.2078]
[1743247406089,6.59040857,1858.2,1853.9,3.2078]
[1743247406288,5.99858904,1855.6,1854.3,26.19655]
[1743247406496,3.2078,1857.1,1854.3,26.19655]
[1743247406497,3.2078,1858.1,1854.6,32.3751]
[1743247406694,3.2078,1858.3,1856.9,1.14766]
[1743247406993,1.07746,1857.1,1857.0,47.49893]
[1743247407195,3.2078,1857.2,1856.1,3.2078]
[1743247407500,1.07792,1856.3,1856.2,49.764]
[1743247407690,2.69419,1856.8,1856.2,46.92049]
[1743247408001,0.00808168,1856.4,1856.2,45.5386]
[1743247408195,3.2078,1857.3,1856.3,3.2078]
[1743247408401,1.07752,1857.0,1856.9,3.2078]
[1743247408701,2.69188,1858.4,1856.9,3.2078]
[1743247408894,3.2078,1857.4,1856.1,3.21588168]
[1743247409094,3.2078,1857.4,1855.6,11.3703]
[1743247409095,1.07792,1856.3,1856.2,49.787]
[1743247409292,1.07792,1856.3,1856.2,45.8842]
[1743247409593,6.52718408,1856.3,1856.2,42.88205]
[1743247410097,6.52718408,1856.3,1856.2,37.81175]
[1743247410295,6.6209922,1856.3,1856.2,45.16836]
[1743247410494,6.6209922,1856.3,1856.2,21.2755689]
[1743247410690,1.07833,1855.6,1855.5,551.125]
[1743247410899,41.26898908,1856.3,1855.5,598.55205166]
[1743247411094,1.07827,1855.7,1855.6,3.2078]
[1743247411297,3.2078,1855.8,1854.4,3.2078]
[1743247411494,3.2078,1855.1,1854.0,3.2078]
[1743247411694,3.2078,1854.9,1854.1,49.807]
[1743247411991,3.2078,1854.3,1852.7,51.0956]
[1743247412192,3.2078,1854.3,1851.3,49.807]
[1743247412193,3.2078,1852.8,1851.3,49.807]
[1743247412393,3.2078,1852.0,1851.0,45.2063]
[1743247412595,9.90254805,1852.7,1851.9,0.00808168]
[1743247412793,0.00808168,1852.2,1852.1,1.08036]
[1743247412989,6.5523069,1853.6,1852.1,1.08036]
[1743247412990,3.2078,1853.5,1852.1,3.2078]
[1743247413191,3.2078,1853.5,1852.0,49.807]
[1743247413192,3.17475154,1853.5,1852.0,49.807]
[1743247413496,3.17475154,1853.5,1851.4,52.70497085]
[1743247413497,3.2078,1852.1,1851.4,52.70497085]
[1743247413698,3.2078,1851.9,1851.1,53.0148]
[1743247413997,3.2078,1852.7,1852.2,44.56492239]
[1743247414201,3.2078,1853.0,1852.2,1.08029]
[1743247414405,79.37525967,1853.4,1851.5,49.807]
[1743247414406,3.2078,1852.4,1851.5,49.807]
[1743247414599,3.2078,1852.1,1851.8,44.56492239]
[1743247414900,3.2078,1851.9,1851.1,3.2078]
[1743247415092,3.2078,1851.2,1850.1,59.761]
[1743247415294,1.11250477,1851.8,1850.7,44.56492239]
[1743247415497,7.00165386,1852.5,1850.2,63.30170399]
[1743247415498,3.2078,1851.6,1851.0,44.56492239]
[1743247415701,3.2078,1852.1,1851.5,44.56492239]
[1743247415892,0.09399626,1853.5,1852.2,1.08029]
[1743247415893,3.2078,1852.7,1852.2,1.08029]
[1743247416093,3.2078,1852.8,1852.3,40.32923618]
[1743247416289,0.00810482,1852.6,1852.4,40.32923618]
[1743247416503,0.00810482,1852.6,1852.3,3.21590482]
[1743247416798,3.2078,1852.2,1850.1,3.2078]
[1743247416997,3.2078,1852.2,1849.4,1.3051]
[1743247416998,3.2078,1850.3,1849.4,1.3051]
[1743247417198,2.70054,1852.4,1850.4,40.32923618]
[1743247417199,3.2078,1850.5,1850.4,40.32923618]
[1743247417400,3.2078,1850.1,1849.6,6.17864714]
[1743247417596,3.2078,1850.1,1847.3,1.08315]
[1743247417597,3.2078,1848.9,1847.3,1.08315]
[1743247417904,3.2078,1847.8,1846.5,3.2078]
[1743247418096,6.02320835,1848.8,1846.7,3.2078]
[1743247418097,0.00810482,1848.3,1846.7,3.2078]
[1743247418300,1.79296,1849.0,1848.9,1.08224]
[1743247418609,1.53028795,1848.8,1847.7,0.00810482]
[1743247418798,3.2078,1848.0,1847.5,0.01152409]
[1743247418996,3.2078,1847.6,1846.6,7.17375679]
[1743247419205,3.2078,1848.4,1847.1,2.70818]
[1743247419403,3.2078,1847.2,1846.9,7.01655182]
[1743247419702,3.2078,1847.2,1845.8,9.72667182]
[1743247419703,3.2078,1847.0,1845.8,7.01655182]
[1743247419900,3.2078,1845.9,1844.8,3.2078]
[1743247420098,0.161,1846.9,1844.8,3.2078]
[1743247420099,6.23499352,1846.9,1845.4,3.2078]
[1743247420300,4.34721311,1847.4,1847.3,1.08318]
[1743247420503,4.34721311,1847.4,1846.8,3.2078]
[1743247420700,10.04928057,1847.4,1845.9,3.2078]
[1743247420896,8.84656911,1847.4,1845.6,49.928]
[1743247421099,8.84656911,1847.4,1844.0,49.928]
[1743247421100,3.2078,1846.2,1844.0,49.928]
[1743247421302,3.2078,1844.1,1843.4,0.0395836]
[1743247421500,3.2078,1843.7,1842.3,3.2078]
[1743247421700,3.2078,1844.6,1842.9,3.2078]
[1743247421904,3.2078,1844.9,1843.9,3.2078]
[1743247422108,3.2078,1842.3,1840.8,3.2078]
[1743247422299,3.2078,1842.4,1841.1,3.2078]
[1743247422604,3.2078,1842.4,1840.0,49.928]
[1743247422605,3.2078,1841.2,1840.0,3.2078]
[1743247422802,3.2078,1839.4,1837.9,2.72171]
[1743247423002,3.2078,1838.6,1837.6,0.0395836]
[1743247423301,7.48068684,1839.3,1838.5,0.00815284]
[1743247423502,3.2078,1838.6,1838.0,3.2078]
[1743247423701,3.2078,1838.2,1836.9,3.2078]
[1743247423899,3.2078,1835.8,1834.3,3.2078]
[1743247424100,1.417,1838.5,1833.7,2.72795]
[1743247424101,0.161,1838.0,1834.9,3.77352045]
[1743247424305,6.9773291,1838.1,1837.8,3.2078]
[1743247424502,3.2078,1839.7,1838.3,3.2078]
[1743247424706,3.79372538,1841.2,1839.7,3.2078]
[1743247424707,3.63272538,1841.2,1839.7,3.2078]
[1743247424910,3.2078,1842.5,1841.1,3.2078]
[1743247425114,2.71332,1843.7,1842.4,3.2078]
[1743247425311,2.5,1843.7,1843.1,3.2078]
[1743247425503,3.2078,1845.0,1843.6,3.2078]
[1743247425712,1.08446,1845.2,1844.4,3.2078]
[1743247425909,1.08446,1845.2,1843.2,38.74015]
[1743247425910,0.42458042,1847.4,1845.5,9.6234]
[1743247426101,0.42458042,1847.4,1844.5,11.14015]
[1743247426102,3.2078,1846.6,1845.4,3.2078]
[1743247426307,0.42458042,1847.4,1844.9,50.013]
[1743247426308,6.0025416,1846.4,1846.1,1.0823]
[1743247426508,6.0025416,1846.4,1845.9,3.2078]
[1743247426712,1.08392,1846.1,1845.3,4.2901]
[1743247426911,0.00813073,1846.2,1845.6,1.0823]
[1743247427111,2.50813073,1846.2,1845.2,3.2078]
[1743247427321,2.50813073,1846.2,1842.0,15.874]
[1743247427322,3.2078,1845.3,1843.8,3.2078]
[1743247427614,3.2078,1844.5,1843.3,1.0823]
[1743247427914,5.86756889,1845.2,1844.0,3.2078]
[1743247428113,5.86756889,1844.4,1843.7,3.2078]
[1743247428307,3.2078,1843.8,1842.9,3.2078]
[1743247428504,0.00813073,1844.1,1843.0,1.0823]
[1743247428705,5.81422916,1843.7,1843.5,6.4156]
[1743247429011,0.00813073,1844.1,1843.3,3.2078]
[1743247429308,0.00813073,1844.1,1844.0,8.42718189]
[1743247429510,0.00813073,1844.1,1844.0,9.51229189]
[1743247429710,1.08414,1845.7,1844.0,5.7078]
[1743247430010,6.08996533,1845.2,1844.9,3.2078]
[1743247430203,6.08996533,1846.3,1845.1,3.2078]
[1743247430411,3.2078,1848.1,1846.2,3.2078]
[1743247430710,11.01710623,1848.4,1847.2,3.2078]
[1743247430908,3.2078,1847.8,1846.8,3.2078]
[1743247431110,0.00813073,1847.3,1847.2,1.08323]
[1743247431407,11.01710623,1848.4,1847.4,3.2078]
[1743247431609,9.91613623,1848.4,1848.1,3.2078]
[1743247431816,8.27398623,1848.4,1848.3,4.29039]
[1743247432012,15.18234463,1848.8,1848.3,4.29039]
[1743247432013,9.58703851,1848.5,1848.3,3.2078]
[1743247432205,5.99972461,1848.4,1847.0,3.2078]
[1743247432414,3.2078,1848.3,1847.5,3.2078]
[1743247432711,3.2078,1849.2,1848.0,3.2078]
[1743247432913,3.2078,1849.2,1848.2,1.08261]
[1743247433214,3.2078,1849.0,1848.3,3.2078]
[1743247433402,6.05989487,1849.1,1847.7,50.067]
[1743247433403,6.05989487,1849.1,1848.0,3.2078]
[1743247433607,3.2078,1849.7,1848.8,3.2078]
[1743247433905,3.2078,1849.7,1849.1,3.2078]
[1743247434107,0.00813073,1849.4,1849.1,0.00813073]
[1743247434302,3.2078,1849.2,1849.1,0.00813073]
[1743247434507,0.00813073,1849.4,1849.1,9.52103123]
[1743247434702,8.48731982,1849.3,1849.1,0.00813073]
[1743247435111,5.7078,1849.3,1849.1,0.00813073]
[1743247435309,0.00813073,1849.4,1849.2,4.55894109]
[1743247435512,0.00813073,1849.4,1849.3,3.2078]
[1743247435714,0.00813073,1849.4,1849.3,7.76674109]
[1743247435912,0.00813073,1849.4,1849.1,0.00813073]
[1743247436212,0.00813073,1849.4,1849.0,3.2078]
[1743247436402,3.2078,1849.1,1848.6,3.2078]
[1743247436817,3.2078,1849.1,1848.3,39.71911572]
[1743247437004,6.2025084,1849.3,1848.4,3.2078]
[1743247437206,3.21593073,1849.4,1847.2,50.049]
[1743247437207,3.2078,1848.6,1847.2,50.049]
[1743247437409,3.2078,1848.1,1847.4,3.2078]
[1743247437609,3.2078,1848.4,1847.6,10.14361425]
[1743247437812,3.2078,1848.9,1848.0,3.2078]
[1743247438114,3.2078,1849.8,1848.7,3.2078]
[1743247438315,50.80834634,1851.6,1848.1,2.70677]
[1743247438316,3.2078,1849.6,1848.9,3.2078]
[1743247438515,3.2078,1849.3,1848.7,53.2568]
[1743247438706,0.00810745,1849.4,1849.3,1.082]
[1743247438913,0.00810745,1849.4,1849.0,10.30805584]
[1743247439112,0.00810745,1849.4,1849.3,1.082]
[1743247439312,0.00810745,1849.4,1849.3,3.582]
[1743247439512,0.00810745,1849.4,1849.1,6.94039259]
[1743247439818,3.2078,1849.3,1849.0,2.5]
[1743247440011,3.2078,1848.4,1847.3,50.038]
[1743247440211,3.2078,1849.0,1847.8,3.2078]
[1743247440413,3.21590745,1848.0,1847.9,7.95948124]
[1743247440714,2.11564,1848.0,1847.4,50.038]
[1743247440918,3.2078,1848.0,1847.6,2.70747]
[1743247441111,7.45e-06,1848.1,1848.0,1.08277]
[1743247441319,11.8669,1848.1,1848.0,0.01604257]
[1743247441614,3.2078,1847.6,1846.6,2.70897]
[1743247441822,3.2078,1847.5,1846.7,5.91663]
[1743247442012,3.2078,1847.9,1847.8,1.08288]
[1743247442206,3.2078,1847.9,1847.1,3.21949544]
[1743247442418,0.00810745,1848.0,1847.7,0.00810745]
[1743247442711,3.2078,1847.8,1847.7,0.00730735]
[1743247442913,1.07100456,1847.7,1846.6,3.2078]
[1743247443118,1.07100456,1847.7,1846.3,3.2078]
[1743247443119,3.2078,1847.1,1846.3,3.2078]
[1743247443317,1.3965,1847.1,1847.0,1.08335]
[1743247443511,3.2078,1848.0,1847.0,3.7494]
[1743247443710,3.2078,1848.0,1847.5,0.01169544]
[1743247443911,3.2078,1848.7,1847.7,5.91516]
[1743247444113,7.45e-06,1847.9,1847.8,1.08288]
[1743247444310,3.2078,1848.6,1848.2,0.02338343]
[1743247444513,3.2078,1849.4,1849.3,1.082]
[1743247444719,3.2078,1850.7,1850.3,1.08136]
[1743247445019,10.70464,1850.6,1850.5,0.0268667]
[1743247445221,15.18234463,1851.8,1850.5,0.0268667]
[1743247445222,15.18234463,1851.8,1850.5,3.2078]
[1743247445418,0.77514253,1851.5,1851.0,3.2078]
[1743247445609,0.00810745,1851.3,1851.2,1.08089]
[1743247445917,14.03955791,1851.8,1851.7,1.0806]